Cogmind - Beta 13 @@@ ROGUE MODE // 2024.04.01 @ 15:20:02 Player: Olafz Result: Destroyed by G-50 Soldier with Heavy Laser Performance ------------- Evolutions (2) 1000 Regions Visited (3) 600 Robots Destroyed (11) 55 Value Destroyed (289) 289 Prototype IDs (5) 100 Alien Tech Used (0) 0 Bonus (0) 0 TOTAL SCORE: 2044 Bonus ------- None Cogmind --------- Core Integrity 0/550 Matter 260/300 Energy 99/100 System Corruption 3% Temperature Cool (64) Movement Core (50) Location -8/Materials Parts ------- > --- POWER (2) -------- (None) > --- PROPULSION (3) --- (None) > --- UTILITY (4) ------ Signal Interpreter Improved Signal Interpreter > --- WEAPON (2) ------- Improved Medium Laser > --- INVENTORY (5) ---- Heavy Deuterium Engine Flight Unit Improved Melee Analysis Suite Improved Melee Analysis Suite Improved Melee Analysis Suite Peak State ------------ > --- POWER ------------ Light Nuclear Core Light Nuclear Core > --- PROPULSION ------- (None) > --- UTILITY ---------- Signal Interpreter Improved Signal Interpreter > --- WEAPON ----------- (None) > --- INVENTORY -------- Heavy Deuterium Engine Flight Unit Improved Melee Analysis Suite Improved Melee Analysis Suite Improved Melee Analysis Suite [Rating: 11] Favorites ----------- Power Light Ion Engine Engine Light Ion Engine Power Core Light Nuclear Core Propulsion Aluminum Leg Leg Aluminum Leg Hover Unit Hover Unit Flight Unit Flight Unit Utility Small Storage Unit Device Seismic Detector Storage Small Storage Unit Processor Signal Interpreter Weapon Medium Laser Energy Gun Medium Laser Ballistic Gun Light Assault Rifle Build | -11 -10 -9 -8 ------- Run | Yrd Mat Mat Mat Slots Evolved 4 | . . 2 2 Power 1 | . . . 1 Propulsion 1 | . . 1 . Utility 2 | . . 1 1 Weapon . | . . . . Parts Attached 20 | 6 4 1 9 Power 4 | 1 . . 3 Engine 2 | 1 . . 1 Core 2 | . . . 2 Reactor . | . . . . Propulsion 6 | 2 2 . 2 Treads . | . . . . Leg 2 | 2 . . . Wheel . | . . . . Hover 2 | . 2 . . Flight 2 | . . . 2 Utility 6 | 1 1 1 3 Device 2 | . 1 1 . Storage 2 | 1 . . 1 Processor 2 | . . . 2 Hackware . | . . . . Protection . | . . . . Artifact . | . . . . Weapon 4 | 2 1 . 1 Energy Gun 3 | 1 1 . 1 Energy Cannon . | . . . . Ballistic Gun 1 | 1 . . . Ballistic Cannon . | . . . . Launcher . | . . . . Special Weapon . | . . . . Impact Weapon . | . . . . Slashing Weapon . | . . . . Piercing Weapon . | . . . . Special Melee Weapon . | . . . . Unidentified Prototypes 2 | . . . 2 Parts Lost 13 | . 3 6 4 Power 3 | . . 1 2 Propulsion 4 | . 1 2 1 Utility 3 | . . 2 1 Weapon 3 | . 2 1 . Highest Loss Streak 6 | . 3 6 4 To Critical Strikes . | . . . . Average Slot Usage (%) 69 | . 86 65 26 Engine 9 | . 14 8 . Leg 12 | . 22 . . Hover 7 | . 4 18 . Device 7 | . 5 17 . Storage 11 | . 14 11 6 Processor 3 | . . . 17 Energy Gun 10 | . 14 9 . Ballistic Gun 5 | . 10 . . Naked Turns . | . . . . Heaviest Build 12 | 11 12 11 10 Greatest Support 20 | 20 20 12 4 Greatest Overweight (x) 3 | . 3 1 3 Average Overweight (x) . | . . . . Largest Inventory Capacity 8 | 8 8 8 8 Average Capacity 7 | 6 8 8 7 Most Carried 7 | . 3 3 7 Average Carried 2 | . 1 2 5 Final Capacity 8 | 8 8 8 5 Final Carried 5 | . 2 3 5 Class Distribution -------------------- 100% | Mutant Dominant Class ---------------- Mutant | -10/Materials Mutant | -9/Materials Mutant | -8/Materials Resources | -11 -10 -9 -8 ----------- Run | Yrd Mat Mat Mat Matter Collected 404 | 232 152 . 20 Remotely . | . . . . Salvage Created 364 | . 310 . 54 Parts 15 | . 15 . . Haulers Intercepted . | . . . . Recyclers Shooed 2 | . 2 . . Parts Field Recycled . | . . . . Retrieved Matter . | . . . . Parts Self-Destructed . | . . . . Prevented . | . . . . Kills | -11 -10 -9 -8 ------- Run | Yrd Mat Mat Mat Combat Hostiles Destroyed 9 | . 8 . 1 Guns 9 | . 8 . 1 Classes Destroyed 4 | . 4 . . Mechanic 1 | . 1 . . Watcher 1 | . 1 . . Swarmer 3 | . 3 . . Grunt 6 | . 5 . 1 Best Kill Streak 4 | . 4 . 1 Combat Bots Only 4 | . 4 . 1 Max Kills in Single Turn 1 | . 1 . 1 Gunslinging . | . . . . Exploded . | . . . . Melee . | . . . . Uniques/NPCs Destroyed . | . . . . Combat | -11 -10 -9 -8 -------- Run | Yrd Mat Mat Mat Hostile Shots Fired 208 | . 57 59 92 Missed 60 | . 12 23 25 Damage Taken 1816 | . 533 457 826 Core 894 | . 107 221 566 Absorbed by Shields . | . . . . Core Remaining (%) 67 | 100 57 44 . Volleys Fired 53 | . 48 2 3 Largest 2 | . 2 1 1 Hottest 70 | . 70 40 56 Shots Fired 89 | . 84 2 3 Gun 89 | . 84 2 3 Cannon . | . . . . Launcher . | . . . . Special . | . . . . Kinetic 36 | . 36 . . Thermal 53 | . 48 2 3 Explosive . | . . . . Electromagnetic . | . . . . Robot Hit Streak 9 | . 9 . 3 Robot Miss Streak 3 | . 3 2 . Penetration Max . | . . . . Secondary Targets . | . . . . Shots Hit Robots 58 | . 55 . 3 Core Hits 23 | . 19 1 3 Critical Kills . | . . . . Critical Parts Destroyed . | . . . . Critical Strikes 6 | . 5 . 1 Burn 6 | . 5 . 1 Melee Attacks . | . . . . Impact . | . . . . Slashing . | . . . . Piercing . | . . . . Sneak Attacks . | . . . . Combat Hostiles . | . . . . Follow-up Attacks . | . . . . Damage Inflicted 730 | . 630 42 58 Guns 653 | . 602 . 51 Cannons . | . . . . Explosions . | . . . . Melee . | . . . . Ramming 77 | . 28 42 7 Kinetic 176 | . 176 . . Thermal 477 | . 426 . 51 Explosive . | . . . . Electromagnetic . | . . . . Impact . | . . . . Slashing . | . . . . Piercing . | . . . . Highest Corruption 3 | . . 1 3 Average Corruption 1 | . . 1 1 Corruption Purged . | . . . . Corruption Blocked . | . . . . Effects 1 | . . . 1 Heat Flow Errors 1 | . . . 1 Overload Shots . | . . . . Overflow Damage . | . . . . Projectiles . | . . . . Explosions . | . . . . Melee . | . . . . Knockbacks . | . . . . Impact . | . . . . Kinetic . | . . . . Secondary . | . . . . Self-Inflicted Damage 30 | . 8 19 3 Shots . | . . . . Rammed 13 | . 1 9 3 Targets Rammed 17 | . 5 9 3 Kicked 4 | . 4 . . Crushed . | . . . . Highest Temperature 381 | . 381 17 237 Average Temperature 161 | . 170 11 84 Received Heat Transfer 741 | . 246 216 279 Effects 6 | . 6 . . Shutdowns 1 | . 1 . . Energy Bleed 3 | . 3 . . Matter Decay 1 | . 1 . . Short Circuit 1 | . 1 . . Siege Activations . | . . . . Robots Corrupted . | . . . . Combat Hostiles . | . . . . Parts Fried . | . . . . Impact Corruptions . | . . . . Robots Melted . | . . . . Combat Hostiles . | . . . . Parts Melted 3 | . 2 . 1 Heat Transferred 1742 | . 1557 . 185 Parts Sabotaged . | . . . . Parts Stolen . | . . . . Parts Stripped . | . . . . Power Chain Reactions . | . . . . Alert | -11 -10 -9 -8 ------- Run | Yrd Mat Mat Mat Peak Influence 241 | . 241 91 39 Initial 23 | . . 23 13 Average 64 | . 99 41 24 Maximum Alert Level 1 | . 1 . . Low Security (%) 89 | 100 80 100 100 Level 1 10 | . 19 . . Level 2 . | . . . . Level 3 . | . . . . Level 4 . | . . . . Level 5 . | . . . . High Security . | . . . . Max Security . | . . . . Squads Dispatched 4 | . 3 1 . Investigation 2 | . 1 1 . Extermination . | . . . . Reinforcement 2 | . 2 . . Assault . | . . . . Garrison . | . . . . Intercept . | . . . . Searches Triggered . | . . . . Construction Impeded . | . . . . Haulers Reinforced . | . . . . Active Scanning Responses . | . . . . Cargo Convoy Interrupts . | . . . . Stealth | -11 -10 -9 -8 --------- Run | Yrd Mat Mat Mat Distress Signals 4 | . 3 . 1 Communications Jammed . | . . . . Distress Signals . | . . . . Times Spotted 39 | . 17 11 11 Peak Tracking Total 11 | . 6 9 11 Tactical Retreats 2 | . 2 . . Traps | -11 -10 -9 -8 ------- Run | Yrd Mat Mat Mat Traps Triggered 3 | . 1 1 1 Indirectly . | . . . . Trap Hack Attempts . | . . . . Triggered . | . . . . Disarmed . | . . . . Reprogrammed . | . . . . Reused . | . . . . Traps Extracted . | . . . . Installed . | . . . . Triggered . | . . . . Machines | -11 -10 -9 -8 ---------- Run | Yrd Mat Mat Mat Machines Disabled . | . . . . Max in Single Turn . | . . . . Machines Repaired . | . . . . Machines Dismantled . | . . . . Machines Sabotaged . | . . . . Overloaded Fab Kills . | . . . . Hacking | -11 -10 -9 -8 --------- Run | Yrd Mat Mat Mat Machines Accessed 6 | . 2 3 1 Terminals 5 | . 2 2 1 Fabricators . | . . . . Repair Stations . | . . . . Recycling Units 1 | . . 1 . Scanalyzers . | . . . . Garrison Access . | . . . . Total Hacks 20 | . 9 8 3 Successful 12 | . 5 5 2 Failed 8 | . 4 3 1 Catastrophic 3 | . 1 2 . Database Lockouts . | . . . . Manual 15 | . 5 9 1 Terminals 18 | . 9 6 3 Fabricators . | . . . . Repair Stations . | . . . . Recycling Units 2 | . . 2 . Scanalyzers . | . . . . Garrison Access . | . . . . Terminal Hacks 4 | . 2 1 1 Record 2 | . 1 1 . Prototype ID Bank 2 | . 1 . 1 Fabricator Hacks . | . . . . Repair Station Hacks . | . . . . Recycling Unit Hacks 1 | . . 1 . Report Inventory 1 | . . 1 . Scanalyzer . | . . . . Garrison Access Hacks . | . . . . Unauthorized Hacks 7 | . 3 3 1 Terminals 6 | . 3 2 1 Track 2 | . 1 1 . Botnet 2 | . 1 1 . Operators 2 | . 1 . 1 Fabricators . | . . . . Repair Stations . | . . . . Recycling Units 1 | . . 1 . Reject 1 | . . 1 . Scanalyzers . | . . . . Garrison Access . | . . . . Data Cores Recovered . | . . . . Used . | . . . . Hacking Detections 4 | . 1 2 1 Full Trace Events 1 | . . . 1 Feedback Events 1 | . . . 1 Corruption 1 | . . . 1 Feedback Blocked . | . . . . Robot Schematics Acquired . | . . . . Robots Built . | . . . . Authchips . | . . . . Time . | . . . . Total Robot Build Rating . | . . . . Part Schematics Acquired . | . . . . Parts Built . | . . . . Authchips . | . . . . Time . | . . . . Total Part Build Rating . | . . . . Parts Repaired . | . . . . Time . | . . . . Parts Recycled . | . . . . Recycled Matter . | . . . . Retrieved Matter . | . . . . Retrieved Components . | . . . . Parts Scanalyzed . | . . . . Part Schematics Acquired . | . . . . Parts Damaged . | . . . . Bothacking | -11 -10 -9 -8 ------------ Run | Yrd Mat Mat Mat Used RIF Installer . | . . . . Robots Hacked . | . . . . Non-combat . | . . . . Combat . | . . . . Robot Hacks Applied . | . . . . Relay Couplers Released . | . . . . Fabnet Peak Effective % . | . . . . Robots Rewired . | . . . . Allies Hacked . | . . . . Hacks Repelled . | . . . . Allies | -11 -10 -9 -8 -------- Run | Yrd Mat Mat Mat Total Allies . | . . . . Largest Group . | . . . . Highest-Rated Group . | . . . . Highest-Rated Ally . | . . . . Total Orders . | . . . . Ally Attacks . | . . . . Total Damage . | . . . . Kills . | . . . . Allies Corrupted . | . . . . Allies Melted . | . . . . Intel | -11 -10 -9 -8 ------- Run | Yrd Mat Mat Mat Robot Analysis Total . | . . . . Derelict Logs Recovered . | . . . . Drone Launches . | . . . . Drone Recoveries . | . . . . Exploration | -11 -10 -9 -8 ------------- Run | Yrd Mat Mat Mat Turns Passed 848 | 63 426 202 157 Spaces Moved 794 | 49 297 291 157 Core 140 | 6 3 28 103 Treads . | . . . . Legs 219 | 43 176 . . Wheels . | . . . . Hover 381 | . 118 263 . Flight 54 | . . . 54 Fastest Speed 40 | 50 56 56 40 Average Speed 80 | 111 95 60 81 Slowest Speed 200 | 120 200 100 200 Overloaded Moves . | . . . . Propulsion Burnouts . | . . . . Robots Hopped . | . . . . Cave-ins Triggered . | . . . . Exploration Rate (%) 26 | 4 55 28 19 Regions Visited 3 Branch Regions . Pre-discovered Areas . | . . . . Known Exits Taken . | . . . . Unknown Exits Taken 3 | 1 1 1 . Scrap Searched . | . . . . Spaces Dug . | . . . . Terrain Destroyed . | . . . . Melee . | . . . . Projectile . | . . . . AOE . | . . . . Terrain Rammed . | . . . . Walls Destroyed . | . . . . Machines Disabled . | . . . . Actions | -11 -10 -9 -8 --------- Run | Yrd Mat Mat Mat Total 911 | 54 361 314 182 Wait 15 | . 4 11 . Move 791 | 48 296 290 157 Hop . | . . . . Pick Up 9 | . 3 1 5 Fast Attach 16 | 6 2 1 7 Attach 4 | . 2 . 2 Detach 4 | . 1 . 3 Swap . | . . . . Drop 2 | . . . 2 Fire 53 | . 48 2 3 Melee . | . . . . Ram 13 | . 1 9 3 Kick 4 | . 4 . . Crush . | . . . . Escape Stasis . | . . . . Rewire . | . . . . Trap . | . . . . Miscellaneous . | . . . . Route ------- -11/Scrapyard -10/Materials -9/Materials -8/Materials History --------- Turn | Location | Event 7 | -11/Scrapyard | Discovered new exit (range 16) 64 | -11/Scrapyard | Entered Materials 312 | -10/Materials | Build established: Mutant 422 | -10/Materials | Lost 3 parts (1n2w) 473 | -10/Materials | Discovered new exit (range 15) 490 | -10/Materials | Entered another Materials area 490 | -9/Materials | Evolved 2 slots: Propulsion x1, Utility x1 671 | -9/Materials | Core integrity fell below 50% 678 | -9/Materials | Discovered new exit (range 14) 692 | -9/Materials | Entered another Materials area 692 | -8/Materials | Evolved 2 slots: Power x1, Utility x1 696 | -8/Materials | Lost 6 parts (1p2n2u1w) 827 | -8/Materials | Core integrity fell below 50% 841 | -8/Materials | Core integrity fell below 20% 849 | -8/Materials | Destroyed by G-50 Soldier with Heavy Laser Last Messages --------------- 00824_ Acquired 20 matter. 00826_ Acquired Flight Unit. 00827_ K-01 Serf collects debris. 00829_ Sml. Storage Unit destroyed. 00830_ Acquired Lgt. Nuclear Core. 00831_ Flight Unit destroyed. 00833_ Acquired Lgt. Nuclear Core. 00833_ K-01 Serf collects debris. 00837_ Critical hit (Burn: +37). 00838_ Lgt. Nuclear Core destroyed. 00839_ R-06 Scavenger collects Flight Unit. 00841_ Acquired Prototype Energy Gun. 00841_ Identified Imp. Medium Laser. 00841_ S-10 Pest destroyed. 00847_ G-47 Trooper suffers critical hit (Burn). 00847_ Imp. Heat Sink melted. 00847_ G-47 Trooper destroyed. 00847_ Lgt. Nuclear Core destroyed. 00848_ R-06 Scavenger collects Imp. Signal Interpreter. 00849_ R-06 Scavenger collects Lgt. Assault Rifle. Map ----- +----------------------------------------------------+ | ?????????????????????????????????????????????????? | | ?????????????????????????????????????????????????? | | ?????????????????????????????????????????????????? | | ?????????????????????????????????????????????????? | | ?????????????????????????????????????????????????? | | ?????????????????????????????????????????????????? | | ?????????????????????????????????????????????????? | | ?????????????????????????????????????????????????? | | ?????????????????????????????????????????????????? | | ?????????????????????????????????????????????????? | | ?????????????????????????????????????????????????? | | ?????????????????????????????????????????????????? | | ????????????H????????????????????????????????????? | | ?????????????????????????????????????????????????? | | ?????????????????????????????????????????????????? | | ?????????????????????????????????????????????????? | | ?????????????????????????????????????????????????? | | ?????????????????????????????????????????????????? | | ????????????????###########??????????????????????? | | ????????????????# #??????????????????????? | | ????????????????# #??????????????????????? | | ????????????????# #??????????????????????? | | ????????????????# #??????????????????????? | | ????????????????# **! #??????????????????????? | | ????????????????# !!= #??????????????????????? | | ????????????????# !s%s@#??????????????????????? | | ????????????????# Ygrg%#????? ?????????????? | | ???##################r###k### ????????????? | | ???# ! ????????????? | | ???# ????????????? | | ???# = [ % ????????????? | | ???## #############/### #######+?????????????? | | ????# #??????# # #????????????????????? | | ????# #??????# """ !# #????????????????????? | | ????# #??????# """ # a#????????????????????? | | ????# #??????# """ # #????????????????????? | | ????# #??????# # #????????????????????? | | ????# #??????# """ # #????????????????????? | | ????# #??????# """ # #????????????????????? | | ????# #??????# """ # #????????????????????? | | ????# #??????? # k?????????????????????? | | ????# #?????????#######????????????????????????? | | ##### #????????????????????????????????????????? | | # #????????????????????????????????????????? | | ! # #??###???????????????????????????????????? | | " + #??# ???????????????????????????????????? | | T # #??# #???????????????????????????????????? | | " # #??# #???????????????????????????????????? | | ! # #??# #???????????????????????????????????? | | ### # #### #???????????????????????????????????? | +----------------------------------------------------+ Best States ------------- Heat Dissipation 31 Energy Generation 14 Energy Capacity 160 Matter Stores 300 Matter Capacity 300 Sight Range 16 Terrain Scan Density 10 Evasion (%) 62 Item Schematics ----------------- None Robot Schematics ------------------ None Fabricated ------------ Nothing Alien Tech Used ----------------- None Achievements -------------- True Hacker root@ Challenges ------------ None Game ------ Seed MyomerSubdwellerNanovents Manual? 0 Play Time 00:19:51 Cumulative 6.7 hours Start 2024.04.01 @ 15:01:08 End 2024.04.01 @ 15:20:02 Sessions 1 Manual Loads 0 Difficulty Rogue Special Mode None Game No. 14 Rogue 12 Adventurer 2 Explorer 0 Win Type - Total 0 Types 0/0/0/0/0/0/0/0/0 Lore% 14 Gallery% 13 Achievement% 14 Wizard Run 0 Options --------- Layout 0 ASCII 0 Keyboard 1 Movement Arrows Keybinds 0 Fullscreen 2 Font 18/SmallcapsGlow Map View 76x50 Zoom Use 0% Tactical HUD 1 Map Filters NONE Filters NONE Steam 1 RUN: 70398dc3-ebb0-4bca-b4c2-df725d3c4bc4